lending/lending_fUSD_20240112
["ID","MTS","AMOUNT","RATE_DAILY","PERIOD"]
[311359761,1705067505139,-500.0,0.00024778,2]
[311359762,1705067505148,-500.0,0.00024778,2]
[311359763,1705067505158,-511.99,0.00024778,2]
[311359764,1705067505167,-500.0,0.00024778,2]
[311359765,1705067505176,-500.0,0.00024778,2]
[311359766,1705067505186,-500.0,0.00024778,2]
[311359767,1705067505196,-513.65,0.00024778,2]
[311359768,1705067505206,-500.0,0.00024778,2]
[311359769,1705067505215,-500.0,0.00024778,2]
[311359770,1705067505225,-176.37664826,0.00024778,2]
[311359771,1705067505235,-500.0,0.00024778,2]
[311359772,1705067505245,-500.0,0.00024778,2]
[311359773,1705067505254,-500.0,0.00024778,2]
[311359774,1705067505264,-522.55,0.00024778,2]
[311359775,1705067505274,-683.51,0.00024778,2]
[311359776,1705067505284,-500.0,0.00024778,2]
[311359777,1705067505294,-924.0,0.00024778,2]
[311359778,1705067505304,-500.0,0.00024778,2]
[311359779,1705067505315,-500.0,0.00024778,2]
[311359780,1705067505324,-677.56,0.00024778,2]
[311359781,1705067505335,-500.0,0.00024778,2]
[311359782,1705067505345,-500.0,0.00024778,2]
[311359783,1705067505354,-500.0,0.00024778,2]
[311359784,1705067505364,-500.0,0.00024778,2]
[311359785,1705067505374,-500.0,0.00024778,2]
[311359786,1705067505383,-612.68,0.00024778,2]
[311359787,1705067505393,-500.0,0.00024778,2]
[311359788,1705067505403,-500.0,0.00024778,2]
[311359789,1705067505413,-590.15,0.00024778,2]
[311359790,1705067505422,-500.0,0.00024778,2]
[311359791,1705067505433,-505.02,0.00024778,2]
[311359792,1705067505443,-500.0,0.00024778,2]
[311359793,1705067505453,-548.99,0.00024778,2]
[311359794,1705067505463,-500.0,0.00024778,2]
[311359795,1705067505472,-543.6,0.00024778,2]
[311359796,1705067505482,-621.93247342,0.00024778,2]
[311359797,1705067505491,-632.89,0.00024778,2]
[311359798,1705067505501,-500.0,0.00024778,2]
[311359799,1705067505510,-500.0,0.00024778,2]
[311359800,1705067505520,-500.0,0.00024778,2]
[311359801,1705067505529,-1092.03,0.00024778,2]
[311359802,1705067505538,-710.83,0.00024778,2]
[311359803,1705067505548,-545.64,0.00024778,2]
[311359804,1705067505559,-533.57,0.00024778,2]
[311359805,1705067505569,-500.0,0.00024778,2]
[311359806,1705067505578,-500.0,0.00024778,2]
[311359807,1705067505588,-547.06,0.00024778,2]
[311359808,1705067505597,-1007.67,0.00024778,2]
[311359809,1705067505607,-1191.64,0.00024778,2]
[311359810,1705067505616,-500.0,0.00024778,2]
[311359811,1705067505625,-653.87,0.00024778,2]
[311359812,1705067505634,-500.0,0.00024778,2]
[311359813,1705067505643,-567.05,0.00024778,2]
[311359814,1705067505653,-616.57,0.00024778,2]
[311359815,1705067505663,-920.08,0.00024778,2]
[311359816,1705067505672,-500.0,0.00024778,2]
[311359817,1705067505681,-500.0,0.00024778,2]
[311359818,1705067505690,-500.0,0.00024778,2]
[311359819,1705067505699,-500.0,0.00024778,2]
[311359820,1705067505709,-500.0,0.00024778,2]
[311359821,1705067505719,-792.43,0.00024778,2]
[311359822,1705067505729,-500.0,0.00024778,2]
[311359823,1705067505738,-500.0,0.00024778,2]
[311359824,1705067505748,-717.68,0.00024778,2]
[311359825,1705067505757,-500.0,0.00024778,2]
[311359826,1705067505767,-615.74,0.00024778,2]
[311359827,1705067505776,-549.71,0.00024778,2]
[311359828,1705067505786,-500.0,0.00024778,2]
[311359829,1705067505795,-533.96,0.00024778,2]
[311359830,1705067505806,-545.26,0.00024778,2]
[311359831,1705067505815,-500.0,0.00024778,2]
[311359832,1705067505825,-500.0,0.00024778,2]
[311359833,1705067505835,-500.0,0.00024778,2]
[311359834,1705067505845,-526.4,0.00024778,2]
[311359835,1705067505855,-753.76,0.00024778,2]
[311359836,1705067505865,-500.0,0.00024778,2]
[311359837,1705067505875,-500.0,0.00024778,2]
[311359838,1705067505885,-500.0,0.00024778,2]
[311359839,1705067505895,-568.06,0.00024778,2]
[311359840,1705067505904,-500.0,0.00024778,2]
[311359841,1705067505913,-500.0,0.00024778,2]
[311359842,1705067505924,-500.0,0.00024778,2]
[311359843,1705067505933,-806.29,0.00024778,2]
[311359844,1705067505942,-500.0,0.00024778,2]
[311359845,1705067505952,-500.0,0.00024778,2]
[311359846,1705067505961,-500.0,0.00024778,2]
[311359847,1705067505971,-500.0,0.00024778,2]
[311359848,1705067505981,-500.0,0.00024778,2]
[311359849,1705067505991,-222.21,0.00024778,2]
[311359850,1705067506001,-500.0,0.00024778,2]
[311359851,1705067506011,-977.29,0.00024778,2]
[311359852,1705067506021,-848.08,0.00024778,2]
[311359853,1705067506030,-500.0,0.00024778,2]
[311359854,1705067506040,-500.0,0.00024778,2]
[311359855,1705067506049,-500.0,0.00024778,2]
[311359856,1705067506061,-170.09916784,0.00024778,2]
[311359857,1705067506071,-500.0,0.00024778,2]
[311359858,1705067506081,-516.56,0.00024778,2]
[311359859,1705067506092,-500.0,0.00024778,2]
[311359860,1705067506101,-401.8303556,0.00024778,2]
[311359861,1705067506111,-500.0,0.00024778,2]
[311359862,1705067506120,-764.31,0.00024778,2]
[311359863,1705067506130,-555.48,0.00024778,2]
[311359864,1705067506139,-500.0,0.00024778,2]
[311359865,1705067506149,-453.95108395,0.00024778,2]
[311359866,1705067506158,-500.0,0.00024778,2]
[311359867,1705067506168,-675.05,0.00024778,2]
[311359868,1705067506182,-500.0,0.00024778,2]
[311359869,1705067506191,-500.0,0.00024778,2]
[311359870,1705067506201,-177.19998781,0.00024778,2]
[311359871,1705067506211,-500.0,0.00024778,2]
[311359872,1705067506222,-696.67,0.00024778,2]
[311359873,1705067506231,-500.0,0.00024778,2]
[311359874,1705067506241,-549.27,0.00024778,2]
[311359875,1705067506251,-537.5,0.00024778,2]
[311359876,1705067506261,-794.27,0.00024778,2]
[311359877,1705067506271,-1478.94,0.00024778,2]
[311359878,1705067506280,-2259.65,0.00024778,2]
[311359879,1705067506290,-592.72,0.00024778,2]
[311359880,1705067506299,-500.0,0.00024778,2]
[311359881,1705067506311,-500.0,0.00024778,2]
[311359882,1705067506322,-508.59,0.00024778,2]
[311359883,1705067506332,-500.0,0.00024778,2]
[311359884,1705067506342,-1082.32,0.00024778,2]
[311359885,1705067506351,-613.36,0.00024778,2]
[311359886,1705067506361,-5818.98,0.00024778,2]
[311359887,1705067506370,-500.0,0.00024778,2]
[311359888,1705067506379,-500.0,0.00024778,2]
[311359889,1705067506389,-500.0,0.00024778,2]
[311359890,1705067506398,-500.0,0.00024778,2]
[311359891,1705067506407,-560.75,0.00024778,2]
[311359892,1705067506416,-540.37,0.00024778,2]
[311359893,1705067506426,-501.17,0.00024778,2]
[311359894,1705067506435,-500.0,0.00024778,2]
[311359895,1705067506445,-941.07,0.00024778,2]
[311359896,1705067506455,-568.7,0.00024778,2]
[311359897,1705067506465,-500.0,0.00024778,2]
[311359898,1705067506475,-500.0,0.00024778,2]
[311359899,1705067506485,-610.82,0.00024778,2]
[311359900,1705067506495,-2025.81,0.00024778,2]
[311359901,1705067506505,-627.28,0.00024778,2]
[311359902,1705067506514,-793.23,0.00024778,2]
[311359903,1705067506523,-500.0,0.00024778,2]
[311359904,1705067506533,-500.0,0.00024778,2]
[311359905,1705067506543,-500.0,0.00024778,2]
[311359906,1705067506554,-500.0,0.00024778,2]
[311359907,1705067506563,-500.0,0.00024778,2]
[311359908,1705067506573,-500.0,0.00024778,2]
[311359909,1705067506582,-500.0,0.00024778,2]
[311359910,1705067506592,-1268.72,0.00024778,2]
[311359911,1705067506601,-500.0,0.00024778,2]
[311359912,1705067506610,-3058.91,0.00024778,2]
[311359913,1705067506620,-500.0,0.00024778,2]
[311359914,1705067506629,-645.36,0.00024778,2]
[311359915,1705067506639,-500.0,0.00024778,2]
[311359916,1705067506649,-500.0,0.00024778,2]
[311359917,1705067506658,-594.49,0.00024778,2]
[311359918,1705067506668,-500.0,0.00024778,2]
[311359919,1705067506678,-500.0,0.00024778,2]
[311359920,1705067506689,-523.76,0.00024778,2]
[311359921,1705067506698,-967.54,0.00024778,2]
[311359922,1705067506708,-500.0,0.00024778,2]
[311359923,1705067506718,-698.09,0.00024778,2]
[311359924,1705067506727,-1774.52,0.00024778,2]
[311359925,1705067506737,-500.0,0.00024778,2]
[311359926,1705067506747,-500.0,0.00024778,2]
[311359927,1705067506756,-672.72,0.00024778,2]
[311359928,1705067506766,-1366.67,0.00024778,2]
[311359929,1705067506775,-640.24,0.00024778,2]
[311359930,1705067506784,-650.29,0.00024778,2]
[311359931,1705067506794,-1109.5,0.00024778,2]
[311359932,1705067506806,-653.12,0.00024778,2]
[311359933,1705067506816,-500.0,0.00024778,2]
[311359934,1705067506825,-2402.79,0.00024778,2]
[311359935,1705067506835,-500.0,0.00024778,2]
[311359936,1705067506845,-682.08,0.00024778,2]
[311359937,1705067506854,-500.0,0.00024778,2]
[311359938,1705067506864,-2173.55,0.00024778,2]
[311359939,1705067506873,-604.31,0.00024778,2]
[311359940,1705067506883,-500.0,0.00024778,2]
[311359941,1705067506892,-1581.39,0.00024778,2]
[311359942,1705067506901,-500.0,0.00024778,2]
[311359943,1705067506910,-500.0,0.00024778,2]
[311359944,1705067506920,-1124.99,0.00024778,2]
[311359945,1705067506929,-500.0,0.00024778,2]
[311359946,1705067506938,-500.0,0.00024778,2]
[311359947,1705067506947,-619.21,0.00024778,2]
[311359948,1705067506956,-500.0,0.00024778,2]
[311359949,1705067506965,-500.0,0.00024778,2]
[311359950,1705067506974,-1172.6,0.00024778,2]
[311359951,1705067506984,-613.44,0.00024778,2]
[311359952,1705067506993,-843.5,0.00024778,2]
[311359953,1705067507002,-500.0,0.00024778,2]
[311359954,1705067507011,-752.62,0.00024778,2]
[311359955,1705067507020,-500.0,0.00024778,2]
[311359956,1705067507030,-1338.76,0.00024778,2]
[311359957,1705067507039,-500.0,0.00024778,2]
[311359958,1705067507048,-570.42,0.00024778,2]
[311359959,1705067507059,-506.47,0.00024778,2]
[311359960,1705067507068,-2558.46,0.00024778,2]
[311359961,1705067507078,-500.0,0.00024778,2]
[311359962,1705067507087,-500.0,0.00024778,2]
[311359963,1705067507096,-778.89,0.00024778,2]
[311359964,1705067507105,-500.0,0.00024778,2]
[311359965,1705067507115,-608.12,0.00024778,2]
[311359966,1705067507124,-500.0,0.00024778,2]
[311359967,1705067507133,-761.66,0.00024778,2]
[311359968,1705067507142,-500.0,0.00024778,2]
[311359969,1705067507151,-500.0,0.00024778,2]
[311359970,1705067507161,-606.09,0.00024778,2]
[311359971,1705067507171,-2321.31,0.00024778,2]
[311359972,1705067507181,-503.85,0.00024778,2]
[311359973,1705067507190,-792.73,0.00024778,2]
[311359974,1705067507200,-505.57,0.00024778,2]
[311359975,1705067507210,-500.0,0.00024778,2]
[311359976,1705067507220,-500.0,0.00024778,2]
[311359977,1705067507229,-1855.62,0.00024778,2]
[311359978,1705067507239,-986.73,0.00024778,2]
[311359979,1705067507249,-500.0,0.00024778,2]
[311359980,1705067507258,-500.0,0.00024778,2]
[311359981,1705067507268,-544.3,0.00024778,2]
[311359982,1705067507278,-500.0,0.00024778,2]
[311359983,1705067507289,-922.23,0.00024778,2]
[311359984,1705067507299,-500.0,0.00024778,2]
[311359985,1705067507310,-855.09,0.00024778,2]
[311359986,1705067507320,-1739.46,0.00024778,2]
[311359987,1705067507330,-539.44,0.00024778,2]
[311359988,1705067507341,-500.0,0.00024778,2]
[311359989,1705067507351,-500.0,0.00024778,2]
[311359990,1705067507362,-628.22,0.00024778,2]
[311359991,1705067507373,-500.0,0.00024778,2]
[311359992,1705067507382,-564.76,0.00024778,2]
[311359993,1705067507392,-500.0,0.00024778,2]
[311359994,1705067507401,-386.87,0.00024778,2]
[311359995,1705067507411,-500.0,0.00024778,2]
[311359996,1705067507421,-500.0,0.00024778,2]
[311359997,1705067507431,-5795.35,0.00024778,2]
[311359998,1705067507441,-500.0,0.00024778,2]
[311359999,1705067507451,-500.0,0.00024778,2]
[311360000,1705067507460,-500.0,0.00024778,2]
[311360001,1705067507469,-500.0,0.00024778,2]
[311360002,1705067507479,-518.54,0.00024778,2]
[311360003,1705067507488,-577.35,0.00024778,2]
[311360004,1705067507498,-500.0,0.00024779,2]
[311360005,1705067507507,-506.82,0.00024779,2]
[311360006,1705067507517,-898.46,0.00024779,2]
[311360007,1705067507526,-689.65,0.00024779,2]
[311360008,1705067507535,-689.5,0.00024779,2]
[311360009,1705067507545,-544.38,0.00024779,2]
[311360010,1705067507556,-517.93,0.00024779,2]
[311360011,1705067507565,-500.0,0.00024779,2]
[311360012,1705067507574,-603.88,0.00024779,2]
[311360013,1705067507582,-500.0,0.00024779,2]
[311360014,1705067507592,-807.14,0.00024779,2]
[311360015,1705067507601,-500.0,0.00024779,2]
[311360016,1705067507611,-763.57,0.00024779,2]
[311360017,1705067507620,-500.0,0.00024779,2]
[311360018,1705067507629,-500.0,0.00024779,2]
[311360019,1705067507638,-881.83,0.00024779,2]
[311360020,1705067507648,-500.0,0.00024779,2]
[311360021,1705067507658,-547.66,0.00024779,2]
[311360022,1705067507667,-717.02,0.00024779,2]
[311360023,1705067507676,-500.0,0.00024779,2]
[311360024,1705067507686,-500.0,0.00024779,2]
[311360025,1705067507695,-588.39,0.00024779,2]
[311360026,1705067507704,-258.68,0.00024781,2]
[311360027,1705067507713,-461.68,0.00024781,2]
[311360028,1705067507721,-186.08,0.00024781,2]
[311360029,1705067507730,-312.0207096,0.00024781,2]
[311360030,1705067507739,-500.0,0.00024781,2]
[311360031,1705067507749,-500.0,0.00024781,2]
[311360032,1705067507759,-202.25,0.0002479,2]
[311360033,1705067507768,-176.49,0.0002488,2]
[311360034,1705067507777,-200.0,0.00024952,2]
[311360035,1705067507786,-241.99831574,0.00025,2]
[311360036,1705067507795,-1328.42608747,0.00025,2]
[311360037,1705067507805,-200.0,0.00025,2]
[311360038,1705067507814,-168.90182657,0.00025,2]
[311360039,1705067507824,-322.3974793,0.00025,2]
[311360040,1705067507832,-276.16063543,0.00025,2]
[311360041,1705067507842,-550.0,0.00025,3]
[311360042,1705067507850,-468.61366301,0.0002505,4]
[311360043,1705067507860,-500.0,0.00025051,2]
[311360044,1705067507870,-500.0,0.00025051,2]
[311360045,1705067507879,-500.0,0.00025051,2]
[311360046,1705067507888,-500.0,0.00025051,2]
[311360047,1705067507897,-453.12,0.00025051,2]
[311360048,1705067507906,-500.0,0.00025051,2]
[311360049,1705067507916,-306.12,0.00025051,2]
[311360050,1705067507926,-500.0,0.00025051,2]
[311360051,1705067507935,-500.0,0.00025051,2]
[311360052,1705067507945,-500.0,0.00025051,2]
[311360053,1705067507954,-396.96,0.00025051,2]
[311360054,1705067507963,-505.4,0.00025051,2]
[311360055,1705067507972,-1250.65,0.00025051,2]
[311360056,1705067507982,-500.0,0.00025051,2]
[311360057,1705067507992,-500.0,0.00025051,2]
[311360058,1705067508002,-7981.48,0.00025051,2]
[311360059,1705067508011,-535.31,0.00025051,2]
[311360060,1705067508020,-1261.36,0.00025051,2]
[311360061,1705067508030,-8984.16,0.00025051,2]
[311360062,1705067508039,-1671.94,0.00025051,2]
[311360063,1705067508049,-3195.18,0.00025051,2]
[311360064,1705067508059,-12299.66,0.00025051,2]
[311360065,1705067508249,-1110.57,0.00025051,2]
[311360066,1705067508276,-630.64,0.00025051,2]
[311360067,1705067508286,-3123.71,0.00025051,2]
[311360068,1705067508300,-500.0,0.00025051,2]
[311360069,1705067508310,-500.0,0.00025051,2]
[311360070,1705067508319,-882.43,0.00025051,2]
[311360071,1705067508328,-2779.34,0.00025051,2]
[311360072,1705067508338,-500.0,0.00025051,2]
[311360073,1705067508348,-941.84,0.00025051,2]
[311360074,1705067508358,-703.36,0.00025051,2]
[311360075,1705067508367,-580.21,0.00025051,2]
[311360076,1705067508377,-22278.0,0.00025051,2]
[311360077,1705067508386,-2896.08,0.00025051,2]
[311360078,1705067508396,-1033.16,0.00025051,2]
[311360079,1705067508406,-2697.74,0.00025051,2]
[311360080,1705067508415,-500.0,0.00025051,2]
[311360081,1705067508425,-1239.07,0.00025051,2]
[311360082,1705067508434,-1299.72,0.00025051,2]
[311360083,1705067508444,-994.29,0.00025051,2]
[311360084,1705067508454,-2369.38,0.00025051,2]
[311360085,1705067508463,-500.0,0.00025051,2]
[311360086,1705067508474,-500.0,0.00025051,2]
[311360087,1705067508484,-508.66,0.00025051,2]
[311360088,1705067508493,-606.0,0.00025051,2]
[311360089,1705067508503,-500.0,0.00025051,2]
[311360090,1705067508513,-500.0,0.00025051,2]
[311360091,1705067508523,-6520.81,0.00025051,2]
[311360092,1705067508533,-1237.49,0.00025051,2]
[311360093,1705067508542,-720.97,0.00025051,2]
[311360094,1705067508553,-4021.3,0.00025051,2]
[311360095,1705067508563,-500.0,0.00025051,2]
[311360096,1705067508573,-1358.89,0.00025051,2]
[311360097,1705067508582,-2605.83,0.00025051,2]
[311360098,1705067508592,-556.6,0.00025051,2]
[311360099,1705067508601,-1356.18,0.00025051,2]
[311360100,1705067508610,-501.72,0.00025051,2]
[311360101,1705067508620,-500.0,0.00025051,2]
[311360102,1705067508629,-500.0,0.00025051,2]
[311360103,1705067508638,-519.89,0.00025051,2]
[311360104,1705067508648,-2784.68,0.00025051,2]
[311360105,1705067508658,-709.85,0.00025051,2]
[311360106,1705067508667,-500.0,0.00025051,2]
[311360107,1705067508677,-974.42,0.00025051,2]
[311360108,1705067508686,-2294.01,0.00025051,2]
[311360109,1705067508696,-500.0,0.00025051,2]
[311360110,1705067508705,-500.0,0.00025051,2]
[311360111,1705067508714,-500.0,0.00025051,2]
[311360112,1705067508723,-1586.88,0.00025051,2]
[311360113,1705067508733,-1607.34,0.00025051,2]
[311360114,1705067508743,-500.0,0.00025051,2]
[311360115,1705067508752,-892.72,0.00025051,2]
[311360116,1705067508761,-1286.7,0.00025051,2]
[311360117,1705067508774,-500.0,0.00025051,2]
[311360118,1705067508784,-500.0,0.00025051,2]
[311360119,1705067508794,-500.0,0.00025051,2]
[311360120,1705067508804,-563.27,0.00025051,2]
[311360121,1705067508813,-500.0,0.00025051,2]
[311360122,1705067508822,-500.0,0.00025051,2]
[311360123,1705067508831,-834.9,0.00025051,2]
[311360124,1705067508841,-1002.65,0.00025051,2]
[311360125,1705067508851,-500.0,0.00025051,2]
[311360126,1705067508860,-500.0,0.00025051,2]
[311360127,1705067508869,-13676.69,0.00025051,2]
[311360128,1705067508879,-1317.28,0.00025051,2]
[311360129,1705067508889,-500.0,0.00025051,2]
[311360130,1705067508898,-500.0,0.00025051,2]
[311360131,1705067508907,-771.85,0.00025051,2]
[311360132,1705067508916,-1642.76,0.00025051,2]
[311360133,1705067508926,-601.82,0.00025051,2]
[311360134,1705067508936,-500.0,0.00025051,2]
[311360135,1705067508945,-5698.97,0.00025051,2]
[311360136,1705067508955,-1051.05,0.00025051,2]
[311360137,1705067508965,-577.98,0.00025051,2]
[311360138,1705067508975,-852.82,0.00025051,2]
[311360139,1705067508985,-697.59,0.00025051,2]
[311360140,1705067508994,-1233.03,0.00025051,2]
[311360141,1705067509003,-500.0,0.00025051,2]
[311360142,1705067509013,-500.0,0.00025051,2]
[311360143,1705067509022,-2538.76,0.00025051,2]
[311360144,1705067509031,-1405.14,0.00025051,2]
[311360145,1705067509040,-673.52,0.00025051,2]
[311360146,1705067509050,-2213.37,0.00025051,2]
[311360147,1705067509062,-500.0,0.00025051,2]
[311360148,1705067509072,-500.0,0.00025051,2]
[311360149,1705067509081,-14904.63,0.00025051,2]
[311360150,1705067509093,-1129.13,0.00025051,2]
[311360151,1705067509103,-1026.68,0.00025051,2]
[311360152,1705067509112,-591.33326151,0.00025051,2]
[311360153,1705067509122,-3836.53,0.00025051,2]
[311360154,1705067509132,-848.03,0.00025051,2]
[311360155,1705067509142,-595.32,0.00025051,2]
[311360156,1705067509153,-338.64,0.00025051,2]
[311360157,1705067509163,-717.68,0.00025051,2]
[311360158,1705067509174,-1579.12,0.00025051,2]
[311360159,1705067509185,-500.0,0.00025051,2]
[311360160,1705067509196,-500.0,0.00025051,2]
[311360161,1705067509206,-500.0,0.00025051,2]
[311360162,1705067509216,-500.0,0.00025051,2]
[311360163,1705067509226,-1016.89,0.00025051,2]
[311360164,1705067509236,-1273.06,0.00025051,2]
[311360165,1705067509247,-500.0,0.00025051,2]
[311360166,1705067509257,-1990.06,0.00025051,2]
[311360167,1705067509267,-642.71,0.00025051,2]
[311360168,1705067509276,-1962.61,0.00025051,2]
[311360169,1705067509286,-3858.89,0.00025051,2]
[311360170,1705067509296,-1731.39,0.00025051,2]
[311360171,1705067509307,-830.92,0.00025051,2]
[311360172,1705067509317,-1448.83,0.00025051,2]
[311360173,1705067509326,-500.0,0.00025051,2]
[311360174,1705067509336,-500.0,0.00025051,2]
[311360175,1705067509346,-899.04,0.00025051,2]
[311360176,1705067509357,-673.69,0.00025051,2]
[311360177,1705067509367,-699.58,0.00025051,2]
[311360178,1705067509379,-2683.93,0.00025051,2]
[311360179,1705067509389,-4923.06,0.00025051,2]
[311360180,1705067509398,-500.0,0.00025051,2]
[311360181,1705067509407,-2940.73,0.00025051,2]
[311360182,1705067509417,-500.0,0.00025051,2]
[311360183,1705067509436,-660.73,0.00025051,2]
[311360184,1705067509449,-1814.82,0.00025051,2]
[311360185,1705067509460,-1795.65,0.00025051,2]
[311360186,1705067509470,-500.0,0.00025051,2]
[311360187,1705067509481,-500.0,0.00025051,2]
[311360188,1705067509492,-500.0,0.00025051,2]
[311360189,1705067509502,-500.0,0.00025051,2]
[311360190,1705067509512,-788.12,0.00025051,2]
[311360191,1705067509522,-2878.51,0.00025051,2]
[311360192,1705067509531,-1029.85,0.00025051,2]
[311360193,1705067509541,-500.0,0.00025052,2]
[311360194,1705067509551,-500.0,0.00025052,2]
[311360195,1705067509562,-500.0,0.00025052,2]
[311360196,1705067509572,-500.0,0.00025052,2]
[311360197,1705067509581,-500.0,0.00025052,2]
[311360198,1705067509591,-500.0,0.00025052,2]
[311360199,1705067509600,-500.0,0.00025052,2]
[311360200,1705067509610,-500.0,0.00025052,2]
[311360201,1705067509620,-500.0,0.00025052,2]
[311360202,1705067509629,-631.43,0.00025052,2]
[311360203,1705067509639,-500.0,0.00025052,2]
[311360204,1705067509648,-500.0,0.00025052,2]
[311360205,1705067509658,-500.0,0.00025052,2]
[311360206,1705067509667,-500.0,0.00025052,2]
[311360207,1705067509677,-500.0,0.00025052,2]
[311360208,1705067509686,-230.08,0.00025052,2]
[311360209,1705067509696,-500.0,0.00025052,2]
[311360210,1705067509705,-500.0,0.00025052,2]
[311360211,1705067509715,-500.0,0.00025052,2]
[311360212,1705067509724,-500.0,0.00025052,2]
[311360213,1705067509733,-500.0,0.00025052,2]
[311360214,1705067509744,-500.0,0.00025052,2]
[311360215,1705067509754,-500.0,0.00025052,2]
[311360216,1705067509763,-500.0,0.00025052,2]
[311360217,1705067509774,-500.0,0.00025052,2]
[311360218,1705067509784,-500.0,0.00025052,2]
[311360219,1705067509793,-500.0,0.00025052,2]
[311360220,1705067509804,-500.0,0.00025052,2]
[311360221,1705067509813,-532.55,0.00025052,2]
[311360222,1705067509823,-571.03,0.00025052,2]
[311360223,1705067509833,-500.0,0.00025052,2]
[311360224,1705067509843,-500.0,0.00025052,2]
[311360225,1705067509853,-500.0,0.00025052,2]
[311360226,1705067509862,-500.0,0.00025052,2]
[311360227,1705067509872,-500.0,0.00025052,2]
[311360228,1705067509881,-500.0,0.00025052,2]
[311360229,1705067509891,-500.0,0.00025052,2]
[311360230,1705067509900,-500.0,0.00025052,2]
[311360231,1705067509910,-500.0,0.00025052,2]
[311360232,1705067509919,-500.0,0.00025052,2]
[311360233,1705067509929,-617.06,0.00025052,2]
[311360234,1705067509938,-500.0,0.00025052,2]
[311360235,1705067509947,-500.03,0.00025052,2]
[311360236,1705067509957,-500.0,0.00025052,2]
[311360237,1705067509966,-900.49,0.00025052,2]
[311360238,1705067509975,-500.0,0.00025052,2]
[311360239,1705067509984,-500.0,0.00025052,2]
[311360240,1705067509994,-500.0,0.00025052,2]
[311360241,1705067510004,-500.0,0.00025052,2]
[311360242,1705067510013,-500.0,0.00025052,2]
[311360243,1705067510023,-580.22,0.00025052,2]
[311360244,1705067510033,-500.0,0.00025052,2]
[311360245,1705067510043,-500.0,0.00025052,2]
[311360246,1705067510055,-500.0,0.00025052,2]
[311360247,1705067510065,-500.0,0.00025052,2]
[311360248,1705067510074,-500.0,0.00025052,2]
[311360249,1705067510084,-500.0,0.00025052,2]
[311360250,1705067510093,-500.0,0.00025052,2]
[311360251,1705067510103,-500.0,0.00025052,2]
[311360252,1705067510113,-500.0,0.00025052,2]
[311360253,1705067510123,-500.0,0.00025052,2]
[311360254,1705067510132,-988.76,0.00025052,2]
[311360255,1705067510143,-500.0,0.00025052,2]
[311360256,1705067510152,-500.0,0.00025052,2]
[311360257,1705067510162,-536.8,0.00025052,2]
[311360258,1705067510178,-500.0,0.00025052,2]
[311360259,1705067510188,-676.74,0.00025052,2]
[311360260,1705067510197,-594.36,0.00025052,2]